Cogmind - Beta 17.1 @@@ ROGUE MODE // 2026.09.22 @ 11:53:36 Player: Somberlain Result: Destroyed by B-99 Colossus with Linear Accelerator Performance ------------- Evolutions (9) 4500 Regions Visited (14) 2800 Robots Destroyed (93) 465 Value Destroyed (3686) 3686 Prototype IDs (45) 900 Alien Tech Used (0) 0 Bonus (3418) 3418 TOTAL SCORE: 15769 Bonus ------- High Alert Combat Kills 170 Follower Combat Kills 2194 Registered with UFD 300 Met Optimus in HQ 500 Built Enhanced Grunts 300 Friendly Fire -46 Cogmind --------- Core Integrity 0/1600 Matter 300/300 Energy 98/100 System Corruption 15% Temperature Cool (0) Movement Core (50) Location -1/Access Parts ------- > --- POWER (2) -------- (None) > --- PROPULSION (4) --- (None) > --- UTILITY (15) ----- Advanced Signal Interpreter Advanced Terrain Scan Processor Core Analyzer > --- WEAPON (4) ------- (None) > --- INVENTORY (5) ---- Biometal Leg Advanced Cryofiber Web Improved Transmission Jammer Power Bank Peak State ------------ > --- POWER ------------ Quantum Reactor Quantum Reactor > --- PROPULSION ------- Biometal Leg Biometal Leg Improved Thunder Leg Centrium Leg > --- UTILITY ---------- 2N-1CE's Frost Array Large Storage Unit Advanced Sensor Array Advanced Signal Interpreter Long-range Terrain Scanner Advanced Terrain Scan Processor Advanced Target Analyzer Core Analyzer Improved Phase Shifter Centrium Medium Armor Plating Graphene Brace Improved Hacking Suite Advanced Hacking Suite Improved System Shield Improved System Shield > --- WEAPON ----------- Dispersion Rifle Dispersion Rifle Dispersion Rifle Enhanced Quantum Rifle > --- INVENTORY -------- Light Quantum Reactor Advanced Myomer Leg Improved Thunder Leg Advanced Cryofiber Web Advanced Heat Sink Improved Transmission Jammer Advanced Thermal Shield Advanced Recalibrator Power Bank Quantum Rifle Scatter Rocket Array Advanced Remote Datajack Improved Plasma Cutter Kinetic Spear [Rating: 178] Favorites ----------- Power Ion Engine Engine Ion Engine Power Core Neutrino Core Reactor Quantum Reactor Propulsion VSS Leg Leg VSS Leg Wheel Subdweller Monowheel Flight Unit Impulse Thruster Utility Large Storage Unit Device V3-11A's Pendant Storage Large Storage Unit Processor Advanced Terrain Scan Processor Hackware Advanced Hacking Suite Protection Centrium Medium Armor Plating Weapon Mining Laser Energy Gun Advanced Variable Charge Gun Energy Cannon HERF Cannon Ballistic Gun Assault Rifle Launcher Grenade Launcher Special Weapon Mining Laser Impact Weapon Heavy Mace Piercing Weapon Kinetic Spear Build | -11 -10 -10 -10 -7 -7 -5 -4 -4 -4 -4 -3 -2 -2 -1 ------- Run | Yrd Mat Min Sub Rec Scr Fac Fac Ext Cet Arc Res Res Tes Acc Slots Evolved 18 | . . . . . . 10 2 . . . 2 2 . 2 Power 1 | . . . . . . 1 . . . . . . . . Propulsion 2 | . . . . . . 2 . . . . . . . . Utility 13 | . . . . . . 7 1 . . . 2 2 . 1 Weapon 2 | . . . . . . . 1 . . . . . . 1 Parts Attached 130 | 6 2 . 8 1 11 30 7 19 11 3 9 5 6 12 Power 14 | 1 . . . . 1 3 1 5 2 . . . . 1 Engine 3 | 1 . . . . 1 . . 1 . . . . . . Core 5 | . . . . . . 3 1 1 . . . . . . Reactor 6 | . . . . . . . . 3 2 . . . . 1 Propulsion 28 | 2 . . 2 1 3 7 . 4 . . 3 1 1 4 Treads . | . . . . . . . . . . . . . . . Leg 25 | 2 . . 1 1 2 7 . 4 . . 3 1 1 3 Wheel 2 | . . . 1 . 1 . . . . . . . . . Hover . | . . . . . . . . . . . . . . . Flight 1 | . . . . . . . . . . . . . . 1 Utility 45 | 1 1 . 1 . 2 14 3 4 5 3 4 2 2 3 Device 26 | . . . 1 . . 10 2 4 3 1 2 . 1 2 Storage 2 | 1 . . . . 1 . . . . . . . . . Processor 9 | . 1 . . . 1 3 1 . . . 1 . 1 1 Hackware 5 | . . . . . . 1 . . . 2 . 2 . . Protection 3 | . . . . . . . . . 2 . 1 . . . Artifact . | . . . . . . . . . . . . . . . Weapon 43 | 2 1 . 5 . 5 6 3 6 4 . 2 2 3 4 Energy Gun 21 | 1 . . 2 . 2 . 3 2 3 . 2 2 1 3 Energy Cannon 6 | . . . . . 1 4 . . . . . . . 1 Ballistic Gun 3 | 1 . . 1 . . 1 . . . . . . . . Ballistic Cannon . | . . . . . . . . . . . . . . . Launcher 4 | . 1 . . . . 1 . 2 . . . . . . Special Weapon 5 | . . . 2 . . . . 1 1 . . . 1 . Impact Weapon 3 | . . . . . 2 . . 1 . . . . . . Slashing Weapon . | . . . . . . . . . . . . . . . Piercing Weapon 1 | . . . . . . . . . . . . . 1 . Special Melee Weapon . | . . . . . . . . . . . . . . . Unidentified Prototypes 9 | . . . 1 . . 2 1 . 2 . . . 3 . Corrupted Parts 2 | . . . . . . . . . 2 . . . . . System Corruption 8 | . . . . . . . . . 8 . . . . . Parts Lost 56 | . 1 . 3 . . 15 . 2 3 . . . . 32 Power 6 | . . . . . . 2 . 1 . . . . . 3 Propulsion 12 | . . . 2 . . 4 . . . . . . . 6 Utility 20 | . . . . . . 3 . 1 2 . . . . 14 Weapon 18 | . 1 . 1 . . 6 . . 1 . . . . 9 Highest Loss Streak 17 | . 1 . 1 . . 8 . 1 3 . . . . 17 To Critical Strikes 1 | . . . . . . 1 . . . . . . . . Average Backups 9 | . 1 2 5 7 8 10 14 14 14 14 14 13 14 10 Power . | . . . . . . . . . . . . . . . Propulsion 1 | . . 1 1 1 1 1 2 . . . . . 2 1 Utility 3 | . . . 1 2 2 2 4 6 8 8 8 7 7 5 Weapon 3 | . 1 1 2 3 4 2 3 4 4 4 4 4 4 2 Tool/Special . | . . . . . . . . . . . . . . . Unused Backups 9 | . . . 1 . . . 2 1 1 . . . . 4 Power . | . . . . . . . . . . . . . . . Propulsion 1 | . . . . . . . . . . . . . . 1 Utility 5 | . . . 1 . . . 1 . 1 . . . . 2 Weapon 1 | . . . . . . . 1 . . . . . . . Tool/Special 2 | . . . . . . . . 1 . . . . . 1 Average Slot Usage (%) 85 | . 96 99 77 96 74 75 92 99 99 100 97 99 99 78 Engine 7 | . 14 14 14 14 14 2 . . . . . . . . Core 1 | . . . . . . 4 10 4 . . . . . . Reactor 2 | . . . . . . . . 4 10 10 9 8 8 4 Leg 18 | . 28 28 18 14 21 16 21 21 21 21 19 17 17 12 Wheel 2 | . . . 1 14 6 . . . . . . . . . Device 14 | . . . 13 14 8 17 19 20 15 15 25 26 22 14 Storage 9 | . 14 14 14 14 14 5 5 5 5 5 4 4 4 2 Processor 8 | . 11 14 . . 2 14 17 21 21 17 9 8 12 15 Hackware 3 | . . . . . . 1 5 5 5 7 14 20 17 12 Energy Gun 7 | . 10 . 3 11 . 1 9 13 15 15 14 13 11 10 Special Weapon 4 | . . . 10 14 6 . . . . . . . . . Peak Build Rating 178 | 6 7 7 14 18 25 68 89 108 121 121 143 153 162 178 Average Rating 54 | 4 6 6 9 16 16 51 78 97 117 120 130 151 157 136 On Entrance 68 | . 6 7 6 11 18 24 60 89 107 121 119 143 152 162 Avg Prop Armor Cover (%) 5 | . . . 5 5 5 4 4 . . . . . 4 13 Naked Turns . | . . . . . . . . . . . . . . . Heaviest Build 103 | 14 15 15 18 16 43 64 58 82 85 85 84 86 91 103 Greatest Support 114 | 20 20 20 20 20 38 88 48 74 74 74 106 106 111 114 Greatest Overweight (x) 2 | . . . 1 1 2 1 1 1 1 1 1 . 1 2 Average Overweight (x) . | . . . . . . . . . . 1 . . . . Largest Inventory Capacity 15 | 8 8 8 8 8 15 15 15 15 15 15 15 15 15 15 Average Capacity 11 | 6 8 8 8 8 13 15 15 15 15 15 15 15 15 11 Most Carried 15 | . 3 2 8 8 15 15 15 15 15 15 15 15 15 15 Average Carried 10 | . 1 2 6 7 10 11 14 14 14 14 14 13 14 10 Final Capacity 15 | 8 8 8 8 8 15 15 15 15 15 15 15 15 15 5 Final Carried 15 | . 2 2 8 8 15 15 15 15 15 15 15 15 15 4 Class Distribution -------------------- 56% | Mutant 11% | Scavenger-Skirmisher 5% | Assassin 4% | Scavenger-Gunner 4% | Hacker-Skirmisher 4% | Commander-Skirmisher 4% | Derelict-Mutant Dominant Class ---------------- Mutant | -10/Materials Mutant | -10/Mines Mutant | -10/Subcaves Mutant | -7/Recycling Mutant | -7/Scraptown Assassin | -5/Factory Scavenger-Skirmisher | -4/Factory Scavenger-Skirmisher | -4/Extension Scavenger-Gunner | -4/Cetus Scavenger-Gunner | -4/Archives Scavenger-Skirmisher | -3/Research Scavenger-Skirmisher | -2/Research Hacker-Skirmisher | -2/Testing Scavenger-Skirmisher | -1/Access Resources | -11 -10 -10 -10 -7 -7 -5 -4 -4 -4 -4 -3 -2 -2 -1 ----------- Run | Yrd Mat Min Sub Rec Scr Fac Fac Ext Cet Arc Res Res Tes Acc Matter Collected 3217 | 193 32 50 333 . 388 319 316 644 150 38 150 64 206 334 Remotely . | . . . . . . . . . . . . . . . Salvage Created 3761 | . 343 . 12 . . 426 241 766 75 320 . 77 119 1382 Parts 182 | . 15 . . . . 21 11 37 7 15 . 3 4 69 Haulers Intercepted 1 | . 1 . . . . . . . . . . . . . Recyclers Shooed 4 | . 1 . . . . . . 1 . . . . . 2 Parts Field Recycled . | . . . . . . . . . . . . . . . Retrieved Matter . | . . . . . . . . . . . . . . . Parts Self-Destructed 14 | . . . 14 . . . . . . . . . . . Prevented . | . . . . . . . . . . . . . . . Parts Restored 2 | . . . . . . . . . 1 . 1 . . . Broken 2 | . . . . . . . . . 1 . 1 . . . Kills | -11 -10 -10 -10 -7 -7 -5 -4 -4 -4 -4 -3 -2 -2 -1 ------- Run | Yrd Mat Min Sub Rec Scr Fac Fac Ext Cet Arc Res Res Tes Acc Combat Hostiles Destroyed 50 | . 8 . 1 . . 12 3 9 1 . . 1 1 14 Melee 4 | . . . . . . . . . . . . . . 4 Guns 26 | . 3 . 1 . . 1 3 5 1 . . 1 1 10 Cannons 5 | . . . . . . 5 . . . . . . . . AOE 12 | . 5 . . . . 4 . 3 . . . . . . Classes Destroyed 17 | . 5 . 1 . . 6 . 5 . . . . . . Worker 9 | . 1 . . . . . 2 3 . . . . 1 2 Builder 10 | . 1 . . . . . . 3 . . . . . 6 Tunneler 2 | . . . . . . . . 2 . . . . . . Hauler 1 | . 1 . . . . . . . . . . . . . Recycler 7 | . . . . . . 1 . 1 . . . . . 5 Mechanic 1 | . 1 . . . . . . . . . . . . . Operator 9 | . . . . . . . . 2 . 7 . . . . Turret 1 | . . . 1 . . . . . . . . . . . Watcher 2 | . . . . . . . . 1 . . . . 1 . Swarmer 10 | . . . . . . 6 . . . . . . . 4 Grunt 17 | . 8 . 1 . . . 1 6 . . . 1 . . Brawler 1 | . . . . . . 1 . . . . . . . . Duelist 1 | . . . . . . 1 . . . . . . . . Sentry 4 | . . . . . . 1 2 1 . . . . . . Hunter 2 | . . . . . . . . 1 . . . . . 1 Programmer 13 | . . . . . . 3 . . . . . . 1 9 Behemoth 1 | . . . . . . . . 1 . . . . . . Cetus Guard 1 | . . . . . . . . . 1 . . . . . Butcher 1 | . . . . . . . . . . 1 . . . . Best Kill Streak 9 | . 6 . 1 . . 6 3 8 1 3 . 1 1 9 Combat Bots Only 6 | . 5 . 1 . . 6 1 2 1 . . 1 1 6 Max Kills in Single Turn 4 | . 2 . 1 . . 2 1 3 1 2 . 1 1 4 Gunslinging 1 | . . . . . . . . 1 . . . . . 1 Exploded 2 | . 2 . . . . 1 . 1 . . . . . . Melee 1 | . . . . . . . . . . . . . . 1 Uniques/NPCs Destroyed . | . . . . . . . . . . . . . . . Combat | -11 -10 -10 -10 -7 -7 -5 -4 -4 -4 -4 -3 -2 -2 -1 -------- Run | Yrd Mat Min Sub Rec Scr Fac Fac Ext Cet Arc Res Res Tes Acc Hostile Shots Fired 741 | . 47 3 38 . . 118 12 56 17 . 7 . 8 435 Missed 291 | . 19 2 20 . . 35 9 23 5 . 3 . 1 174 Hits 450 | . 28 1 18 . . 83 3 33 12 . 4 . 7 261 Melee 8 | . . . . . . 8 . . . . . . . . Projectile 442 | . 28 1 18 . . 75 3 33 12 . 4 . 7 261 AOE 7 | . . . 1 . . 5 . . . . . . . 1 Critical Strikes 22 | . 2 . . . . 3 . 2 2 . . . . 13 Actively Blocked 12 | . . . . . . . . 1 . . . . . 11 Part Disruptions 1 | . . . . . . . . . . . . . 1 . Damage Taken 9797 | . 367 14 461 . . 2249 67 686 314 . 127 . 285 5227 Core 2527 | . 53 14 156 . . 538 . 66 48 . 24 . 25 1603 Absorbed by Shields 475 | . . . . . . 315 . 134 26 . . . . . Ignored by Resistances 25 | . . . . . . 25 . . . . . . . . Core Remaining (%) 73 | 100 . . . . 10 46 . . . 90 98 . 98 . Volleys Fired 254 | . 27 . 32 8 . 52 10 32 17 25 6 1 17 27 Largest 4 | . 2 . 2 1 . 2 3 3 3 3 3 3 3 4 Hottest 720 | . 80 . 110 100 . 136 306 406 387 720 428 254 270 358 Shots Fired 512 | . 52 . 36 8 . 62 18 79 26 74 15 3 39 100 Gun 436 | . 46 . 11 1 . 39 18 71 25 74 15 3 37 96 Cannon 20 | . . . . . . 20 . . . . . . . . Launcher 19 | . 6 . . . . 3 . 6 . . . . . 4 Special 37 | . . . 25 7 . . . 2 1 . . . 2 . Kinetic 57 | . 22 . 4 . . 31 . . . . . . . . Thermal 411 | . 24 . 25 7 . 16 18 71 25 74 15 3 37 96 Explosive 19 | . 6 . . . . 3 . 6 . . . . . 4 Electromagnetic 20 | . . . 7 1 . 12 . . . . . . . . Robot Hit Streak 19 | . 17 . 5 . . 15 9 15 13 8 9 1 7 19 Robot Miss Streak 9 | . 3 . 4 . . 5 3 9 1 3 1 3 5 4 Penetration Max . | . . . . . . . . . . . . . . . Secondary Targets 6 | . . . . . . . . 1 1 . . . 1 3 Max Gunslinging Chain 1 | . . . . . . . . 1 1 . . . 1 1 Shots Hit Robots 319 | . 36 . 6 . . 48 16 51 15 43 8 1 15 80 Core Hits 256 | . 24 . 3 . . 30 9 75 7 18 2 1 7 80 Critical Kills 5 | . . . . . . . . 1 . . . . . 4 Critical Parts Destroyed 9 | . . . 1 . . 1 1 . . . . . 2 4 Critical Strikes 22 | . 1 . 1 . . 1 2 2 . . . . 2 13 Burn 3 | . 1 . . . . . 1 1 . . . . . . Destroy 14 | . . . 1 . . . . . . . . . 2 11 Smash 3 | . . . . . . 1 1 1 . . . . . . Impale 2 | . . . . . . . . . . . . . . 2 Melee Attacks 71 | . . . . . . 9 2 2 . . . . 4 54 Impact 17 | . . . . . . 9 2 2 . . . . 4 . Slashing . | . . . . . . . . . . . . . . . Piercing 54 | . . . . . . . . . . . . . . 54 Sneak Attacks 7 | . . . . . . . 2 1 . . . . . 4 Combat Hostiles . | . . . . . . . . . . . . . . . Follow-up Attacks . | . . . . . . . . . . . . . . . Damage Inflicted 13774 | . 922 . 110 . . 1540 531 3311 464 1377 300 56 495 4668 Guns 7414 | . 403 . 110 . . 510 365 1508 464 1377 300 56 495 1826 Cannons 320 | . . . . . . 320 . . . . . . . . Explosions 4697 | . 519 . . . . 512 . 1756 . . . . . 1910 Melee 1343 | . . . . . . 198 166 47 . . . . . 932 Ramming . | . . . . . . . . . . . . . . . Kinetic 660 | . 178 . 73 . . 409 . . . . . . . . Thermal 6985 | . 320 . . . . 274 365 1508 464 1377 300 56 495 1826 Explosive 4602 | . 424 . . . . 512 . 1756 . . . . . 1910 Electromagnetic 184 | . . . 37 . . 147 . . . . . . . . Impact 411 | . . . . . . 198 166 47 . . . . . . Slashing . | . . . . . . . . . . . . . . . Piercing 932 | . . . . . . . . . . . . . . 932 Highest Corruption 15 | . 3 3 3 3 3 13 . . 8 8 . . . 15 Average Corruption 4 | . 2 3 3 3 3 11 . . 7 8 . . . 5 Corruption Purged . | . . . . . . . . . . . . . . . Corruption Blocked . | . . . . . . . . . . . . . . . Effects 202 | . 7 5 58 28 40 26 . . 12 16 . . . 10 Message Errors 46 | . 3 1 12 7 10 8 . . 2 2 . . . 1 Matter Fused 53 | . 1 1 16 12 13 2 . . 2 3 . . . 3 Heat Flow Errors 34 | . . 1 11 3 5 7 . . 1 4 . . . 2 Energy Discharges 19 | . 1 1 3 . 5 4 . . 1 3 . . . 1 Parts Rejected 3 | . . 1 . . . . . . 1 1 . . . . Parts Fused 1 | . . . . . . 1 . . . . . . . . Data Loss (minor) 27 | . 1 . 8 5 7 1 . . 3 . . . . 2 Data Loss (major) 11 | . . . 6 1 . 2 . . 1 1 . . . . Misfires 2 | . 1 . 1 . . . . . . . . . . . Alerts 3 | . . . 1 . . 1 . . . 1 . . . . Misdirections 1 | . . . . . . . . . . . . . . 1 Weapon Failures 2 | . . . . . . . . . 1 1 . . . . Overload Shots 26 | . . . . . . . 5 9 2 7 3 . . . Effects 2 | . . . . . . . . . . 1 1 . . . Heat Surge 1 | . . . . . . . . . . 1 . . . . Short Circuit 1 | . . . . . . . . . . . 1 . . . Overflow Damage 415 | . 16 . . . . 41 151 . . . . . . 207 Projectiles . | . . . . . . . . . . . . . . . Explosions 16 | . 16 . . . . . . . . . . . . . Melee 399 | . . . . . . 41 151 . . . . . . 207 Knockbacks . | . . . . . . . . . . . . . . . Impact . | . . . . . . . . . . . . . . . Kinetic . | . . . . . . . . . . . . . . . Secondary . | . . . . . . . . . . . . . . . Self-Inflicted Damage 196 | . . . . . . 30 . 53 . . . . . 113 Shots 10 | . . . . . . 2 . 2 . . . . . 6 Rammed . | . . . . . . . . . . . . . . . Targets Rammed . | . . . . . . . . . . . . . . . Kicked . | . . . . . . . . . . . . . . . Crushed . | . . . . . . . . . . . . . . . Highest Temperature 482 | . 252 263 250 240 266 252 282 482 67 229 . . . 137 Average Temperature 98 | . 74 136 101 63 122 82 124 185 67 87 . . . 61 Received Heat Transfer 567 | . 243 9 72 . . 33 21 153 18 . 18 . . . Effects 3 | . 3 . . . . . . . . . . . . . Interference 3 | . 3 . . . . . . . . . . . . . Siege Activations . | . . . . . . . . . . . . . . . Martial Activations . | . . . . . . . . . . . . . . . Shielding Activations . | . . . . . . . . . . . . . . . Robots Disrupted 1 | . . . . . . 1 . . . . . . . . Combat Hostiles 1 | . . . . . . 1 . . . . . . . . Robots Corrupted 2 | . . . . . . 2 . . . . . . . . Combat Hostiles 2 | . . . . . . 2 . . . . . . . . Parts Fried 2 | . . . . . . . 2 . . . . . . . Impact Corruptions 4 | . . . . . . 1 3 . . . . . . . Robots Melted 1 | . . . . . . . . 1 . . . . . . Combat Hostiles 1 | . . . . . . . . 1 . . . . . . Parts Melted 13 | . . . . . . 1 . 7 . 3 . . . 2 Heat Transferred 9630 | . 890 . . . . 444 619 2326 658 1754 335 74 592 1938 Parts Sabotaged . | . . . . . . . . . . . . . . . Parts Stolen . | . . . . . . . . . . . . . . . Parts Stripped . | . . . . . . . . . . . . . . . Power Chain Reactions . | . . . . . . . . . . . . . . . Alert | -11 -10 -10 -10 -7 -7 -5 -4 -4 -4 -4 -3 -2 -2 -1 ------- Run | Yrd Mat Min Sub Rec Scr Fac Fac Ext Cet Arc Res Res Tes Acc Maximum Alert Level 2 | . 1 . . . . . . 1 1 . 1 1 1 2 Low Security (%) 72 | 100 86 100 . 100 . 100 100 70 81 100 48 18 9 22 Level 1 19 | . 13 . . . . . . 29 18 . 51 81 90 4 Level 2 7 | . . . . . . . . . . . . . . 72 Level 3 . | . . . . . . . . . . . . . . . Level 4 . | . . . . . . . . . . . . . . . Level 5 . | . . . . . . . . . . . . . . . High Security . | . . . . . . . . . . . . . . . Max Security . | . . . . . . . . . . . . . . . Peak Influence 546 | . 246 85 . 46 . 171 88 376 236 163 299 337 359 546 Initial 205 | . . 85 . . . . 25 . 176 23 25 156 162 205 Average 130 | . 52 39 . 2 . 65 41 112 152 107 153 278 273 400 Influence Increases 4871 | . 316 5 229 65 . 554 185 860 159 304 393 213 551 1037 Destroy 0b10 Robot/C 1900 | . 160 . 140 . . 240 80 340 80 80 140 80 160 400 Destroy 0b10 Robot/NC 260 | . 20 5 . . . 5 15 80 5 35 10 . 15 70 Destroy Leader 316 | . 32 . . . . 60 32 46 . . 32 10 32 72 Allied During Kill 1109 | . . . 14 . . . 7 232 74 115 182 90 194 201 Trap Triggered on 0b10 20 | . . . . . . 20 . . . . . . . . Successful Hack 189 | . . . . 46 . 30 47 18 . . . 12 6 30 Disable Machine 270 | . 45 . . . . 45 . . . 60 15 . 90 15 Destroy Structure 507 | . 59 . . 4 . 64 4 144 . 14 14 21 54 129 Lose Combat Pursuer 300 | . . . 75 15 . 90 . . . . . . . 120 Influence Decreases 4401 | . 96 225 229 65 . 502 237 543 417 294 183 203 497 910 Entered New Map 771 | . . 135 . . . . 27 . 141 36 44 123 127 138 Time Decay 2610 | . 86 80 139 65 . 362 210 363 206 198 119 80 310 392 Lost Part 520 | . 10 . 10 . . 140 . 10 30 . . . . 320 Lost Ally 500 | . . 10 80 . . . . 170 40 60 20 . 60 60 Squads Dispatched 26 | . 2 1 . . . 4 3 4 . . . 1 3 8 Investigation 5 | . 1 . . . . . . 1 . . . 1 . 2 Extermination 8 | . . . . . . 2 . . . . . . 2 4 Reinforcement 8 | . 1 . . . . 1 1 3 . . . . 1 1 Assault 2 | . . 1 . . . . . . . . . . . 1 Garrison 3 | . . . . . . 1 2 . . . . . . . Intercept . | . . . . . . . . . . . . . . . Searches Triggered . | . . . . . . . . . . . . . . . Construction Impeded 2 | . . . . . . . . 1 . . . . . 1 Haulers Reinforced . | . . . . . . . . . . . . . . . Active Scanning Responses . | . . . . . . . . . . . . . . . Cargo Convoy Interrupts . | . . . . . . . . . . . . . . . Stealth | -11 -10 -10 -10 -7 -7 -5 -4 -4 -4 -4 -3 -2 -2 -1 --------- Run | Yrd Mat Min Sub Rec Scr Fac Fac Ext Cet Arc Res Res Tes Acc Distress Signals 4 | . 1 . . . . . . 1 1 . . . . 1 Communications Jammed . | . . . . . . . . . . . . . . . Distress Signals . | . . . . . . . . . . . . . . . Times Spotted 157 | . 16 2 16 1 . 31 6 21 6 11 4 4 7 32 Peak Tracking Total 12 | . 5 3 4 1 . 7 2 5 5 . 2 4 3 12 Tactical Retreats 14 | . . . 3 1 . 6 . . . . . . . 4 Traps | -11 -10 -10 -10 -7 -7 -5 -4 -4 -4 -4 -3 -2 -2 -1 ------- Run | Yrd Mat Min Sub Rec Scr Fac Fac Ext Cet Arc Res Res Tes Acc Traps Triggered 6 | . 2 . 2 . . . . 1 . . . . . 1 Indirectly . | . . . . . . . . . . . . . . . Trap Hack Attempts . | . . . . . . . . . . . . . . . Triggered . | . . . . . . . . . . . . . . . Disarmed . | . . . . . . . . . . . . . . . Reprogrammed . | . . . . . . . . . . . . . . . Reused 2 | . . . . . . 2 . . . . . . . . Traps Extracted . | . . . . . . . . . . . . . . . Installed 2 | . . . . . . 2 . . . . . . . . Triggered 2 | . . . . . . 2 . . . . . . . . Most Traps Carried 3 | . . . . . 3 2 . . . . . . . . Machines | -11 -10 -10 -10 -7 -7 -5 -4 -4 -4 -4 -3 -2 -2 -1 ---------- Run | Yrd Mat Min Sub Rec Scr Fac Fac Ext Cet Arc Res Res Tes Acc Machines Disabled 23 | . 3 . 2 . . 3 . 1 1 4 1 . 7 1 Max in Single Turn 3 | . 3 . 1 . . 2 . . 1 1 1 . 1 1 Garrison Access 2 | . . . . . . 1 1 . . . . . . . Energy Cycler 1 | . . . . . . . . 1 . . . . . . Machines Repaired . | . . . . . . . . . . . . . . . Machines Dismantled . | . . . . . . . . . . . . . . . Machines Sabotaged . | . . . . . . . . . . . . . . . Overloaded Fab Kills . | . . . . . . . . . . . . . . . Hacking | -11 -10 -10 -10 -7 -7 -5 -4 -4 -4 -4 -3 -2 -2 -1 --------- Run | Yrd Mat Min Sub Rec Scr Fac Fac Ext Cet Arc Res Res Tes Acc Machines Accessed 40 | . 2 . 2 6 3 6 3 9 1 . . 2 2 4 Terminals 25 | . 2 . . 6 . 3 2 9 1 . . . 1 1 Fabricators 1 | . . . . . . . . . . . . 1 . . Repair Stations . | . . . . . . . . . . . . . . . Recycling Units 3 | . . . . . . 2 . . . . . . . 1 Scanalyzers 3 | . . . . . . . . . . . . 1 1 1 Garrison Access 3 | . . . . . . 1 1 . . . . . . 1 Total Hacks 103 | . 9 . 7 18 9 13 6 21 1 . . 6 5 8 Successful 51 | . 2 . 7 4 9 4 4 10 1 . . 6 2 2 Failed 52 | . 7 . . 14 . 9 2 11 . . . . 3 6 Catastrophic 13 | . . . . 4 . 2 . 4 . . . . . 3 Database Lockouts . | . . . . . . . . . . . . . . . Manual 26 | . 9 . . 5 . 8 2 1 1 . . . . . Terminals 67 | . 9 . . 18 . 8 4 21 1 . . . 3 3 Fabricators 2 | . . . . . . . . . . . . 2 . . Repair Stations . | . . . . . . . . . . . . . . . Recycling Units 6 | . . . . . . 4 . . . . . . . 2 Scanalyzers 8 | . . . . . . . . . . . . 4 2 2 Garrison Access 4 | . . . . . . 1 2 . . . . . . 1 Terminal Hacks 33 | . 1 . 7 4 9 . 1 10 1 . . . . . Record 9 | . . . 6 . 1 . . 1 1 . . . . . Part Schematic 4 | . . . . 2 . . . 2 . . . . . . Robot Analysis 11 | . 1 . . 1 7 . 1 1 . . . . . . Prototype ID Bank 1 | . . . . 1 . . . . . . . . . . Open Door 5 | . . . . . . . . 5 . . . . . . Recall Reinforcements 1 | . . . . . . . . 1 . . . . . . Proto ID Catalog 2 | . . . 1 . 1 . . . . . . . . . Fabricator Hacks 2 | . . . . . . . . . . . . 2 . . Load Schematic 1 | . . . . . . . . . . . . 1 . . Build 1 | . . . . . . . . . . . . 1 . . Repair Station Hacks . | . . . . . . . . . . . . . . . Recycling Unit Hacks 1 | . . . . . . 1 . . . . . . . . Retrieve Components 1 | . . . . . . 1 . . . . . . . . Scanalyzer 8 | . . . . . . . . . . . . 4 2 2 Retrieve Study 8 | . . . . . . . . . . . . 4 2 2 Garrison Access Hacks 2 | . . . . . . 1 1 . . . . . . . Seal Access 2 | . . . . . . 1 1 . . . . . . . Unauthorized Hacks 5 | . 1 . . . . 2 2 . . . . . . . Terminals 5 | . 1 . . . . 2 2 . . . . . . . Assimilate 1 | . . . . . . . 1 . . . . . . . Botnet 3 | . 1 . . . . 1 1 . . . . . . . Operators 1 | . . . . . . 1 . . . . . . . . Fabricators . | . . . . . . . . . . . . . . . Repair Stations . | . . . . . . . . . . . . . . . Recycling Units . | . . . . . . . . . . . . . . . Scanalyzers . | . . . . . . . . . . . . . . . Garrison Access . | . . . . . . . . . . . . . . . Data Cores Recovered . | . . . . . . . . . . . . . . . Used . | . . . . . . . . . . . . . . . Hacking Detections 29 | . 2 . . 6 . 5 2 7 . . . 2 1 4 Full Trace Events 10 | . 1 . . 6 . . . 1 . . . 1 . 1 Feedback Events . | . . . . . . . . . . . . . . . Feedback Blocked . | . . . . . . . . . . . . . . . Robot Schematics Acquired . | . . . . . . . . . . . . . . . Robots Built . | . . . . . . . . . . . . . . . Authchips . | . . . . . . . . . . . . . . . Time . | . . . . . . . . . . . . . . . Total Robot Build Rating . | . . . . . . . . . . . . . . . Part Schematics Acquired 9 | . . . . 2 . . . 2 . . . . 5 . Parts Built 2 | . . . . . . . . . . . . 2 . . Authchips . | . . . . . . . . . . . . . . . Time 58 | . . . . . . . . . . . . 58 . . Total Part Build Rating 14 | . . . . . . . . . . . . 14 . . Part Studies Acquired 8 | . . . . . . . . . . . . 4 2 2 Parts Repaired . | . . . . . . . . . . . . . . . Time . | . . . . . . . . . . . . . . . Parts Recycled . | . . . . . . . . . . . . . . . Recycled Matter . | . . . . . . . . . . . . . . . Retrieved Matter . | . . . . . . . . . . . . . . . Retrieved Components 3 | . . . . . . 3 . . . . . . . . Parts Scanalyzed . | . . . . . . . . . . . . . . . Part Schematics Acquired . | . . . . . . . . . . . . . . . Parts Damaged . | . . . . . . . . . . . . . . . Bothacking | -11 -10 -10 -10 -7 -7 -5 -4 -4 -4 -4 -3 -2 -2 -1 ------------ Run | Yrd Mat Min Sub Rec Scr Fac Fac Ext Cet Arc Res Res Tes Acc Used RIF Installer . | . . . . . . . . . . . . . . . Robots Hacked 1 | . . . . . . . . . . . . . 1 . Non-combat . | . . . . . . . . . . . . . . . Combat 1 | . . . . . . . . . . . . . 1 . Robot Hacks Applied 1 | . . . . . . . . . . . . . 1 . parse_system 1 | . . . . . . . . . . . . . 1 . Relay Couplers Released 1 | . . . . . . . 1 . . . . . . . Machine Destruction 1 | . . . . . . . 1 . . . . . . . Fabnet Peak Effective % . | . . . . . . . . . . . . . . . Robots Rewired 8 | . . . . . . . 1 6 . . . . 1 . Allies Hacked . | . . . . . . . . . . . . . . . Hacks Repelled . | . . . . . . . . . . . . . . . Allies | -11 -10 -10 -10 -7 -7 -5 -4 -4 -4 -4 -3 -2 -2 -1 -------- Run | Yrd Mat Min Sub Rec Scr Fac Fac Ext Cet Arc Res Res Tes Acc Total Allies 35 | . . 1 8 . . . 2 18 5 . . . 1 . Largest Group 12 | . . 1 4 1 . . 2 11 12 12 7 6 7 3 Highest-Rated Group 879 | . . 31 76 19 . . 92 485 879 879 550 521 642 313 Highest-Rated Ally 159 | . . 31 19 19 . . 47 159 159 159 96 96 121 121 Initial UFD Resources 48 | . . . . . . 39 41 41 41 41 43 46 46 48 Total Orders . | . . . . . . . . . . . . . . . Ally Attacks 326 | . . 4 31 4 . . 8 79 38 36 30 30 33 33 Total Damage 9464 | . . 63 700 75 . . 236 1917 905 767 1007 1021 1558 1215 Kills 59 | . . 1 7 . . . 2 14 4 4 9 3 8 7 Allies Corrupted 2 | . . . . . . . . . . . . . 2 . Allies Melted . | . . . . . . . . . . . . . . . Intel | -11 -10 -10 -10 -7 -7 -5 -4 -4 -4 -4 -3 -2 -2 -1 ------- Run | Yrd Mat Min Sub Rec Scr Fac Fac Ext Cet Arc Res Res Tes Acc Active Infowar (turns) 5112 | . . . . . . 589 389 1736 427 291 278 160 685 557 Optics 2672 | . . . . . . . 219 1736 427 290 . . . . Sensors 3768 | . . . . . . 111 389 1627 9 . 278 160 685 509 Terrain 3634 | . . . . . . 487 389 1069 8 1 278 160 685 557 Robot Analysis Total 11 | . 1 . . 1 7 . 1 1 . . . . . . Derelict Logs Recovered 4 | . . . 1 . 3 . . . . . . . . . Drone Launches 1 | . . . . . . 1 . . . . . . . . Drone Recoveries . | . . . . . . . . . . . . . . . Exploration | -11 -10 -10 -10 -7 -7 -5 -4 -4 -4 -4 -3 -2 -2 -1 ------------- Run | Yrd Mat Min Sub Rec Scr Fac Fac Ext Cet Arc Res Res Tes Acc Turns Passed 13977 | 64 427 202 3173 1284 2496 1253 458 1736 427 414 278 160 685 920 Spaces Moved 8119 | 50 276 169 1817 852 1534 682 244 833 139 135 129 93 512 654 Core 99 | 6 . . . . . . . . . . . . . 93 Treads . | . . . . . . . . . . . . . . . Legs 7707 | 44 276 169 1817 668 1531 682 244 833 139 135 129 93 512 435 Wheels 187 | . . . . 184 3 . . . . . . . . . Hover . | . . . . . . . . . . . . . . . Flight 126 | . . . . . . . . . . . . . . 126 Fastest Speed 40 | 50 120 120 120 110 120 90 90 105 105 185 112 105 105 40 Average Speed 143 | 111 120 120 162 128 158 140 147 158 164 185 157 115 107 95 Slowest Speed 196 | 120 120 120 190 190 190 196 180 185 185 185 185 120 168 168 Overloaded Moves . | . . . . . . . . . . . . . . . Propulsion Burnouts . | . . . . . . . . . . . . . . . Robots Hopped 4 | . . . . . . . . . . . . . . 4 Potential Cave-ins . | . . . . . . . . . . . . . . . Cave-ins Triggered 1 | . . . . . . . . . . . . . . 1 Exploration Rate (%) 45 | 3 48 49 95 93 85 13 5 84 55 84 5 2 42 15 Regions Visited 14 Branch Regions 8 Pre-discovered Areas 3 | . . . 1 . 2 . . . . . . . . . Known Exits Taken 9 | . . . . . 1 1 1 1 1 1 1 1 1 . Unknown Exits Taken 5 | 1 1 1 1 1 . . . . . . . . . . Scrap Searched 11 | . . 1 3 . 7 . . . . . . . . . Spaces Dug 27 | . . . . 7 . . 1 1 . . 2 . 1 15 Terrain Destroyed 285 | . 65 . . 7 . 46 2 108 . 7 3 1 1 45 Melee 17 | . . . . . . . . 1 . . . . 1 15 Projectile 26 | . . . . 7 . 1 2 5 . 7 3 1 . . AOE 242 | . 65 . . . . 45 . 102 . . . . . 30 Terrain Rammed . | . . . . . . . . . . . . . . . Walls Destroyed . | . . . . . . . . . . . . . . . Machines Disabled . | . . . . . . . . . . . . . . . Actions | -11 -10 -10 -10 -7 -7 -5 -4 -4 -4 -4 -3 -2 -2 -1 --------- Run | Yrd Mat Min Sub Rec Scr Fac Fac Ext Cet Arc Res Res Tes Acc Total 9771 | 55 319 168 1945 1017 1601 889 323 1169 314 245 189 143 604 790 Wait 902 | . 9 . 70 154 17 76 49 196 132 70 34 39 34 22 Move 8098 | 49 275 168 1816 851 1533 681 243 832 138 134 128 92 511 647 Hop 3 | . . . . . . . . . . . . . . 3 Pick Up 72 | . 3 . 11 1 15 15 5 6 2 4 1 1 3 5 Fast Attach 77 | 6 1 . 2 1 6 18 3 9 7 3 5 2 8 6 Attach 50 | . 1 . 5 1 5 16 3 1 3 . 2 3 1 9 Detach 29 | . . . 3 . 8 5 1 . 3 2 1 2 2 2 Swap 68 | . 3 . 2 . 4 4 1 20 6 2 6 1 9 10 Drop 76 | . . . 4 1 13 7 4 14 6 5 6 2 9 5 Fire 254 | . 27 . 32 8 . 52 10 32 17 25 6 1 17 27 Melee 71 | . . . . . . 9 2 2 . . . . 4 54 Ram . | . . . . . . . . . . . . . . . Kick . | . . . . . . . . . . . . . . . Crush . | . . . . . . . . . . . . . . . Escape Stasis 5 | . . . . . . . . 5 . . . . . . Rewire 64 | . . . . . . 4 2 52 . . . . 6 . Trap 2 | . . . . . . 2 . . . . . . . . Miscellaneous . | . . . . . . . . . . . . . . . Route ------- -11/Scrapyard -10/Materials -10/Mines -10/Subcaves (discovered 3 exits: [*Mat x2] / *Rec) -7/Recycling (discovered 2 exits: *Fac / *Scr) -7/Scraptown -5/Factory -4/Factory -4/Extension (discovered 3 exits: *Res x2 / *Cet) -4/Cetus -4/Archives (discovered 3 exits: *Res / *Hub x2) -3/Research -2/Research -2/Testing -1/Access History --------- Turn | Location | Event 3 | -11/Scrapyard | Discovered new exit (range 16) 65 | -11/Scrapyard | Entered Materials 314 | -10/Materials | Build established: Mutant 454 | -10/Materials | Discovered new exit (range 9) 492 | -10/Materials | Entered Mines 503 | -10/Mines | Met a Derelict bent on vengeance 576 | -10/Mines | Met a Derelict testing a Signal Generator 684 | -10/Mines | Discovered new exit (range 9) 694 | -10/Mines | Entered Subcaves 813 | -10/Subcaves | Visited triangular shrine 821 | -10/Subcaves | Found Prototype Device 821 | -10/Subcaves | Identified V3-11A's Pendant 826 | -10/Subcaves | Befriended Subdweller 826 | -10/Subcaves | Befriended Subdweller 901 | -10/Subcaves | Befriended Subdweller 909 | -10/Subcaves | Learned 2 Materials zone layouts 1034 | -10/Subcaves | Discovered new exit (range 8) 1071 | -10/Subcaves | Befriended Subdweller 1071 | -10/Subcaves | Befriended Subdweller 1133 | -10/Subcaves | Discovered new exit (range 11) 1295 | -10/Subcaves | Shifting Twisted Machinery released Riot Gun 1321 | -10/Subcaves | Shifting Twisted Machinery released Hvy. Riot Gun 1337 | -10/Subcaves | A swath of the cavern ceiling suddenly collapsed 1530 | -10/Subcaves | Discovered new exit (range 11) 2022 | -10/Subcaves | Visited Clippyterm 2026 | -10/Subcaves | Learned location of Section 7 (-2) 2055 | -10/Subcaves | Core integrity fell below 50% 2056 | -10/Subcaves | Befriended Subdweller 2056 | -10/Subcaves | Befriended Subdweller 2131 | -10/Subcaves | Befriended Subdweller 2223 | -10/Subcaves | Shifting Twisted Machinery released Sub. Machine Gun 2227 | -10/Subcaves | Shifting Twisted Machinery released Battle Rifle 2546 | -10/Subcaves | Visited 4L-MR0's lab 2589 | -10/Subcaves | Found Power Bank 2890 | -10/Subcaves | Shifting Twisted Machinery released Flamer 2937 | -10/Subcaves | Shifting Twisted Machinery released Sub. Machine Gun 3617 | -10/Subcaves | Core integrity fell below 20% 3867 | -10/Subcaves | Entered Recycling 3867 | -7/Recycling | Accompanied by 1 ally 4201 | -7/Recycling | Discovered new exit (range 16) 5121 | -7/Recycling | Scanned before Scraplab entrance 5139 | -7/Recycling | Entered Scraplab 5148 | -7/Recycling | Discovered new exit (range 3) 5151 | -7/Recycling | Entered Scraptown 5282 | -7/Scraptown | Visited UFD Registry 5282 | -7/Scraptown | Registered with UFD as "Bladetalker" 5439 | -7/Scraptown | Visited Research Penetration Think Tank 5485 | -7/Scraptown | Visited Analyses Database 5512 | -7/Scraptown | Visited Abandonware Association 5589 | -7/Scraptown | Visited Cartography Club 5703 | -7/Scraptown | Visited Spacefarers 5719 | -7/Scraptown | Visited Comm Corps 5748 | -7/Scraptown | Visited Shadow of the Wyrm 5884 | -7/Scraptown | Delivered Scrap Shield to a Scientist 5966 | -7/Scraptown | Visited Curators Association 6008 | -7/Scraptown | Visited Science Guys 6246 | -7/Scraptown | Scanned Subdweller tech in exchange for log data 6253 | -7/Scraptown | Learned Factory interactive machine intel 6254 | -7/Scraptown | Learned location of Armory (-4) 6256 | -7/Scraptown | Learned location of Quarantine (-3) 6335 | -7/Scraptown | Guru changed UFD alias to "Wiretorch" 6619 | -7/Scraptown | Delivered V3-11A's Pendant to T0-NE2 in exchange for information 6926 | -7/Scraptown | Visited TADAMA 6985 | -7/Scraptown | Visited Assassins FH 7031 | -7/Scraptown | Visited Red Mages 7125 | -7/Scraptown | Visited Fellowship of the Rings 7453 | -7/Scraptown | Visited DA-N13 Charitable Foundation 7472 | -7/Scraptown | Found DCF Scrap (28 items) 7536 | -7/Scraptown | Met Optimus 7536 | -7/Scraptown | Accepted into 0bPrime 7585 | -7/Scraptown | Visited Chapter 10 7640 | -7/Scraptown | Discovered new exit (range 5) 7644 | -7/Scraptown | Identified exit to Factory 7647 | -7/Scraptown | Entered Factory 7647 | -5/Factory | Evolved 10 slots: Power x1, Propulsion x2, Utility x7 7648 | -5/Factory | Loaded intel: 54 interactive machine locations 7765 | -5/Factory | Discovered new exit (range 13) 7935 | -5/Factory | Build established: Derelict-Mutant 7947 | -5/Factory | Identified exit to Factory 8018 | -5/Factory | Garrison activated, responded to threat 8284 | -5/Factory | System corruption reached 10% 8298 | -5/Factory | Found Prototype Launcher 8298 | -5/Factory | Identified Scatter Rocket Array 8306 | -5/Factory | Core integrity fell below 50% 8317 | -5/Factory | Found Scatter Rocket Array 8320 | -5/Factory | Found Scatter Rocket Array 8336 | -5/Factory | Lost 8 parts (1p2n3u2w) 8623 | -5/Factory | Build established: Assassin 8900 | -5/Factory | Entered another Factory area 8900 | -4/Factory | Evolved 2 slots: Utility x1, Weapon x1 9012 | -4/Factory | Garrison activated, responded to threat 9327 | -4/Factory | Discovered new exit (range 15) 9352 | -4/Factory | Identified exit to Extension 9358 | -4/Factory | Entered Extension 9358 | -4/Extension | Accompanied by 2 allies 9459 | -4/Extension | Build established: Scavenger-Skirmisher 9488 | -4/Extension | Rescued a captive Derelict 9736 | -4/Extension | Rescued a captive Derelict 9886 | -4/Extension | Rescued a captive Derelict 9888 | -4/Extension | Rescued a captive Derelict 9929 | -4/Extension | Rescued a captive Derelict 9930 | -4/Extension | Rescued a captive Derelict 10128 | -4/Extension | Build established: Commander-Skirmisher 10434 | -4/Extension | Spotted B-86 Titan 10448 | -4/Extension | Allies destroyed B-86 Titan 10451 | -4/Extension | Spotted B-86 Titan 10472 | -4/Extension | Destroyed B-86 Titan 10504 | -4/Extension | Lost 3 allies 10515 | -4/Extension | Discovered new exit (range 20) 10638 | -4/Extension | Energy Cycler disabled 10638 | -4/Extension | Rescued a captive Derelict 10638 | -4/Extension | Rescued a captive Derelict 10638 | -4/Extension | Rescued a captive Derelict 10639 | -4/Extension | Rescued a captive Derelict 10641 | -4/Extension | Rescued a captive Derelict 10642 | -4/Extension | Rescued a captive Derelict 10642 | -4/Extension | Rescued a captive Derelict 10646 | -4/Extension | Rescued a captive Derelict 10682 | -4/Extension | Lost 6 allies 10701 | -4/Extension | Rescued A7 10803 | -4/Extension | Build established: Scavenger-Skirmisher 10823 | -4/Extension | Attached CPS modules to A7 11029 | -4/Extension | Discovered new exit (range 23) 11046 | -4/Extension | Discovered new exit (range 10) 11053 | -4/Extension | Identified exit to Cetus 11094 | -4/Extension | Entered Cetus 11094 | -4/Cetus | Accompanied by 9 allies (A7) 11099 | -4/Cetus | Acquired a Cetus Manufacturing Module code from A7 11107 | -4/Cetus | Spotted Cetus Guard 11108 | -4/Cetus | Spotted Cetus Guard 11109 | -4/Cetus | Spotted Cetus Guard 11111 | -4/Cetus | Spotted Cetus Guard 11115 | -4/Cetus | Attached CPS modules to Cetus Guard 11122 | -4/Cetus | Allies destroyed Cetus Guard 11126 | -4/Cetus | Destroyed Cetus Guard 11132 | -4/Cetus | Allies destroyed Cetus Guard 11135 | -4/Cetus | Allies destroyed Cetus Guard 11159 | -4/Cetus | Lost 3 parts (2u1w) 11287 | -4/Cetus | Started Cetus Manufacturing Module 11312 | -4/Cetus | Manufactured an Enhanced Grunt 11322 | -4/Cetus | Found a strange terminal 11337 | -4/Cetus | Manufactured an Enhanced Grunt 11362 | -4/Cetus | Manufactured an Enhanced Grunt 11387 | -4/Cetus | Manufactured an Enhanced Grunt 11401 | -4/Cetus | Build established: Scavenger-Gunner 11412 | -4/Cetus | Manufactured an Enhanced Grunt 11461 | -4/Cetus | Discovered new exit (range 22) 11498 | -4/Cetus | Identified exit to Archives 11521 | -4/Cetus | Entered Archives 11521 | -4/Archives | Accompanied by 12 allies (A7) 11581 | -4/Archives | Discovered new exit (range 22) 11601 | -4/Archives | Lost 3 allies 11620 | -4/Archives | Discovered new exit (range 14) 11642 | -4/Archives | Discovered new exit (range 17) 11852 | -4/Archives | Identified exit to Hub_04(d) 11911 | -4/Archives | Identified exit to Research 11935 | -4/Archives | Entered Research 11935 | -3/Research | Accompanied by 7 allies 11935 | -3/Research | Evolved 2 slots: Utility x2 12168 | -3/Research | Discovered new exit (range 9) 12187 | -3/Research | Identified exit to Research 12213 | -3/Research | Entered another Research area 12213 | -2/Research | Accompanied by 6 allies 12213 | -2/Research | Evolved 2 slots: Utility x2 12235 | -2/Research | Build established: Scavenger-Skirmisher 12239 | -2/Research | Discovered new exit (range 16) 12282 | -2/Research | Identified exit to Testing 12289 | -2/Research | Fabricated Dispersion Rifle (x2) 12373 | -2/Research | Entered Testing 12373 | -2/Testing | Accompanied by 6 allies 12558 | -2/Testing | Found Prototype Device 12558 | -2/Testing | Identified 2N-1CE's Frost Array 12754 | -2/Testing | Rewired PL-343ZZIVX76 12756 | -2/Testing | Attached CPS modules to PL-343ZZIVX76 12801 | -2/Testing | Lost 3 allies 13030 | -2/Testing | Discovered new exit (range 16) 13053 | -2/Testing | Build established: Hacker-Skirmisher 13056 | -2/Testing | Identified exit to Access 13058 | -2/Testing | Entered Access 13058 | -1/Access | Accompanied by 3 allies 13058 | -1/Access | Evolved 2 slots: Utility x1, Weapon x1 13558 | -1/Access | First assault squad dispatched 13564 | -1/Access | Spotted B-99 Colossus 13567 | -1/Access | Spotted B-99 Colossus 13681 | -1/Access | Lost 17 parts (3p1n8u5w) 13812 | -1/Access | System corruption reached 10% 13824 | -1/Access | Core integrity fell below 50% 13836 | -1/Access | Lost 9 parts (3n3u3w) 13856 | -1/Access | Crushed by falling debris 13976 | -1/Access | Core integrity fell below 20% 13978 | -1/Access | Destroyed by B-99 Colossus with Linear Accelerator Last Messages --------------- 13972_ Acquired 3 matter. 13973_ Impulse Thruster destroyed. 13973_ Imp. System Shield destroyed. 13973_ Penetrated by Slug. 13973_ Adv. Target Analyzer destroyed. 13973_ Penetrated by Slug. 13973_ Slug penetrates Wall. 13973_ Penetrated by Slug. 13973_ Slug penetrates Wall. 13974_ Penetrated by Slug. 13975_ Slug penetrates Wall. 13977_ Penetrated by Slug. 13977_ Slug penetrates Sealed Heavy Doors. 13977_ Slug penetrates Wall. 13978_ B-99 Colossus activates siege mode. 13978_ Knocked back. 13978_ Penetrated by Slug. 13978_ Slug penetrates Wall. 13978_ Penetrated by Slug. 13978_ Slug penetrates Wall. Map ----- +----------------------------------------------------+ | ###?#?#### " + # ########## | | #?######?# # # "######### | | ??######## # # ########## | | ??#####?############### # ####?####? | | ########## ] # # """""" ###?###### | | ??#?##?#?# ![ ! # # """""" ########?# | | #?###?#### # + """""" ######?#?# | | #######?## # # """""" ########## | | ####### "" # # """""" ######?#?# | | ## ###?### "" # # ##?####### | | ## ####### """""" # # #####?#??# | | + + """""" #% %# ####?##### | | # ####### "" # % ##############?######?# | | # ###?### "" /k ####################### | | + #####?# #s ###########?##### ? | | # ###?### # # ##?#### | | # #################### s # ####### ? ? | | # %% % % s # ####### ? ? | | + % s % # ####### ? | | # % % % h# [ ! ####### | | # h #######?##?## | | ####+"### ########### # + ? ? | | ## ## ###? # # # ##?###### ? | | ### ## ###### ##;; #;################# ? | | # +% # ### % #### ? ? #### ? | | # ! ## # ### @ #### ###? ?? | | # %! ### # ### #### ? ?? ? ? | | # = ### # ? #?# #### ? #?##? | | # ### + ### BB BB #### ? #?#?###? | | " ### # ? ?## BB BB #?#? ? ????? ??? | | " #?# # #?# #### ? # ? ??? | | # ### # ?? ###""""""""""#### ? ? ???? ??? | | # ##? # ? ??#?"""""""""?###? ?? ? ??? ? ?? | | # ### #?#?##?#""""""""""##????#??#????? ???? | | ######### ?#?#####""""??""""##?###?????##??????? | | # #?# ### #### #??? ?? #??????????????????? | | ########"##+########? """?""? ##?????????????????? | | # #?#? ? ??"?????????????????????? | | * ! # ### "?"" ??????????????????????? | | "####### # " #?# ?"??????????????????????????? | | !!!# # # "" ###? ???????????????????????????? | | ##### ## # "" ##??????????????????????????????? | | !!=%= # "" #???????????????????????????????? | | !!*%= # # "" #???????????????????????????????? | | %!%*! # # "" #?""""""""""""??????????????????? | | != # # "" #?#"" #??????????????????? | | # + " #?#"" #??????????????????? | | + + #?#"" #??????????????????? | | # # #?#T #??????????????????? | | # # #?#"" #??????????????????? | +----------------------------------------------------+ Best States ------------- Heat Dissipation 225 Energy Generation 49 Energy Capacity 600 Matter Stores 300 Matter Capacity 300 Sight Range 22 Robot Scan Range 16 Terrain Scan Range 24 Terrain Scan Density 210 Additional Mass Support 9 Base Temperature (-) 200 Armor Coverage 225 Resistance: TH 30 Phase Shifting 10 Evasion (%) 82 Targeting Accuracy 5 Target Analysis 8 Core Analysis 6 Kinecelleration 40 Offensive Hacking 38 Defensive Hacking 24 Item Schematics ----------------- Adv. Assault Cannon | -7/Recycling | Hacked Thermal Shield | -7/Recycling | Hacked HERF Cannon | -4/Extension | Hacked Dispersion Rifle | -4/Extension | Hacked Coolant Network | -2/Testing | Archive Exp. ECM Suite | -2/Testing | Archive Com. Tesla Bomb Launcher | -2/Testing | Archive Exp. Shock Absorption System | -2/Testing | Archive Hvy. Wave Gun | -2/Testing | Archive Robot Schematics ------------------ None Fabricated ------------ Dispersion Rifle | x2 | -2/Research Repaired ---------- Nothing Studied --------- Dispersion Rifle | -2/Research | Hacked Quantum Rifle | -2/Research | Hacked Imp. Thunder Leg | -2/Research | Hacked Myomer Leg | -2/Research | Hacked Centrium Leg | -2/Testing | Hacked Quantum Reactor | -2/Testing | Hacked Biometal Leg | -1/Access | Hacked Adv. Remote Datajack | -1/Access | Hacked Alien Tech Used ----------------- None Achievements -------------- None Challenges ------------ None Game ------ Seed SigixSuperchargedStick Manual? 0 Play Time 01:42:53 Cumulative 154.8 hours Start 2026.09.22 @ 09:23:18 End 2026.09.22 @ 11:53:36 Sessions 5 Manual Loads 0 Difficulty Rogue Special Mode None Game No. 172 Rogue 172 Adventurer 0 Explorer 0 Win Type - Total 0 Types 0/0/0/0/0/0/0/0/0/0 Lore% 58 Gallery% 60 Achievement% 46 Wizard Run 0 Options --------- Layout 1 ASCII 0 Keyboard 0 Movement Mouse Keybinds 0 Fullscreen 2 Font 24/Smallcaps Map View 50x35 Zoom Use 0% Tactical HUD 1 Map Filters NONE Filters NONE Steam 1 RUN: fab98dbd-1361-432e-8c68-0ea4bb461fc2